bitfinex/quotes_BTCUSD_20240817
["timestamp","ask_amount","ask_price","bid_price","bid_amount"]
[1723902356858,0.0835,59401.0,59400.0,1.58246657]
[1723902357246,0.0845,59401.0,59400.0,1.59646657]
[1723902357418,0.0845,59401.0,59400.0,1.64667121]
[1723902357619,0.0845,59401.0,59400.0,1.64757761]
[1723902357825,0.085324,59401.0,59400.0,1.64757761]
[1723902358003,0.085324,59401.0,59400.0,1.74167761]
[1723902358203,0.084324,59401.0,59400.0,1.73667761]
[1723902358402,0.085324,59401.0,59400.0,1.74967761]
[1723902358608,0.085324,59401.0,59400.0,1.72834933]
[1723902358809,0.084324,59401.0,59400.0,1.73667273]
[1723902359243,0.085324,59401.0,59400.0,1.72935098]
[1723902361399,0.085324,59401.0,59400.0,1.42162603]
[1723902361615,0.085324,59401.0,59400.0,1.29972603]
[1723902362080,0.085324,59401.0,59400.0,1.27839794]
[1723902362298,0.085324,59401.0,59400.0,1.29973346]
[1723902362521,0.084324,59401.0,59400.0,1.28573346]
[1723902362978,0.084324,59401.0,59400.0,1.28473346]
[1723902363486,0.085324,59401.0,59400.0,1.29873346]
[1723902365759,0.085324,59401.0,59400.0,1.29873207]
[1723902368832,0.085324,59401.0,59400.0,1.29873143]
[1723902369005,0.085324,59401.0,59400.0,1.67385643]
[1723902369229,0.085324,59401.0,59400.0,1.7029225]
[1723902369634,0.085324,59401.0,59400.0,1.71317818]
[1723902369993,0.085324,59401.0,59400.0,1.7131782]
[1723902370212,0.085324,59401.0,59400.0,1.71317822]
[1723902370430,0.085324,59401.0,59400.0,1.71317825]
[1723902370638,0.085324,59401.0,59400.0,1.71517825]
[1723902370840,0.085324,59401.0,59400.0,1.71717825]
[1723902370841,1e-08,59401.0,59400.0,1.71717825]
[1723902371068,1e-08,59401.0,59400.0,1.7079225]
[1723902371277,1e-08,59401.0,59400.0,1.71717787]
[1723902372935,1e-08,59401.0,59400.0,1.71317787]
[1723902373158,1e-08,59401.0,59400.0,1.59057787]
[1723902373987,1e-08,59401.0,59400.0,1.59057819]
[1723902374195,1e-08,59401.0,59400.0,1.58957819]
[1723902374423,1e-08,59401.0,59400.0,1.33705319]
[1723902376026,1e-08,59401.0,59400.0,1.24295319]
[1723902377006,1e-08,59401.0,59400.0,1.24294578]
[1723902378043,0.14280001,59401.0,59400.0,1.24294578]
[1723902380921,0.14280001,59401.0,59400.0,1.30184386]
[1723902381559,0.14280001,59401.0,59400.0,1.35208053]
[1723902382139,0.14362401,59401.0,59400.0,1.35208053]
[1723902382643,0.14362401,59401.0,59400.0,1.23369037]
[1723902384582,0.14362401,59401.0,59400.0,1.28397444]
[1723902384982,0.14362401,59401.0,59400.0,1.23369037]
[1723902385577,0.14362401,59401.0,59400.0,0.04923477]
[1723902385780,0.14362401,59401.0,59400.0,0.17549677]
[1723902385911,0.14362401,59401.0,59400.0,0.04923477]
[1723902386115,0.26988401,59401.0,59400.0,0.0279064]
[1723902386347,0.52240501,59401.0,59400.0,0.0279064]
[1723902386545,0.52240501,59401.0,59400.0,0.0139064]
[1723902386546,0.522405,59401.0,59400.0,0.0139064]
[1723902386748,0.522405,59401.0,59400.0,0.0279064]
[1723902386749,0.523405,59401.0,59400.0,0.0279064]
[1723902387163,0.523405,59401.0,59400.0,0.0149064]
[1723902387361,0.522405,59401.0,59400.0,0.0009064]
[1723902387601,0.522405,59401.0,59400.0,0.0069064]
[1723902387904,0.269884,59401.0,59400.0,0.0049064]
[1723902388033,0.269884,59401.0,59400.0,0.0069064]
[1723902388533,0.143624,59401.0,59400.0,0.0069064]
[1723902388977,0.269884,59401.0,59400.0,0.0069064]
[1723902389205,0.143624,59401.0,59400.0,0.0069064]
[1723902389379,0.269884,59401.0,59400.0,0.0069064]
[1723902389588,0.143624,59401.0,59400.0,0.0069064]
[1723902389779,0.269884,59401.0,59400.0,0.0069064]
[1723902393416,0.143624,59401.0,59400.0,0.0069064]
[1723902393844,0.269884,59401.0,59400.0,0.0069064]
[1723902395411,0.143624,59401.0,59400.0,0.0069064]
[1723902395634,0.269884,59401.0,59400.0,0.0069064]
[1723902396576,0.143624,59401.0,59400.0,0.0069064]
[1723902397116,0.143624,59401.0,59400.0,0.1331684]
[1723902397344,0.143624,59401.0,59400.0,0.3856934]
[1723902399578,0.143624,59401.0,59400.0,0.6382184]
[1723902404006,0.061624,59401.0,59400.0,0.8907434]
[1723902404298,0.061624,59401.0,59400.0,0.91206415]
[1723902404618,0.061624,59401.0,59400.0,0.91206391]
[1723902405250,0.061624,59401.0,59400.0,0.91206683]
[1723902407309,0.138624,59401.0,59400.0,0.91206683]
[1723902407695,0.138624,59401.0,59400.0,0.8907434]
[1723902409716,0.138624,59401.0,59400.0,0.91206447]
[1723902412254,0.138624,59401.0,59400.0,0.91206451]
[1723902420316,0.138624,59401.0,59400.0,0.91205686]
[1723902420765,0.138624,59401.0,59400.0,0.91205593]
[1723902421427,0.000824,59401.0,59400.0,0.91205593]
[1723902421947,0.000824,59401.0,59400.0,1.33713547]
[1723902422176,1e-08,59401.0,59400.0,2.25210606]
[1723902422405,1e-08,59401.0,59400.0,1.99958106]
[1723902422853,1e-08,59401.0,59400.0,1.99558106]
[1723902423060,1e-08,59401.0,59400.0,2.14642504]
[1723902423231,1e-08,59401.0,59400.0,1.99554727]
[1723902423376,1e-08,59401.0,59400.0,1.99354727]
[1723902423579,0.00100001,59401.0,59400.0,2.00654727]
[1723902424127,1e-08,59401.0,59400.0,1.99354727]
[1723902424326,0.00100001,59401.0,59400.0,2.00654727]
[1723902424531,0.00100001,59401.0,59400.0,1.99354727]
[1723902424893,0.00300001,59401.0,59400.0,1.99554727]
[1723902425417,0.00200001,59401.0,59400.0,1.9815492]
[1723902425615,0.00200001,59401.0,59400.0,1.9955492]
[1723902425813,0.00200001,59401.0,59400.0,2.05435549]
[1723902428993,0.00200001,59401.0,59400.0,2.05526189]
[1723902429197,0.00200001,59401.0,59400.0,1.9964556]
[1723902431317,0.00200001,59401.0,59400.0,1.9674342]
[1723902431523,0.00200001,59401.0,59400.0,1.9964524]
[1723902433440,0.00200001,59401.0,59400.0,2.24897194]
[1723902433647,0.00200001,59401.0,59400.0,2.30777509]
[1723902434067,0.000825,59402.0,59401.0,1.393865]
[1723902434267,0.000825,59402.0,59401.0,2.24513714]
[1723902434625,0.000825,59402.0,59401.0,2.27886714]
[1723902435184,0.001825,59402.0,59401.0,2.44336791]
[1723902435599,0.001825,59402.0,59401.0,2.29286714]
[1723902436223,0.001825,59402.0,59401.0,2.44330539]
[1723902436423,0.001825,59402.0,59401.0,2.45730539]
[1723902436620,0.001825,59402.0,59401.0,2.44330539]
[1723902436819,0.000825,59402.0,59401.0,2.42930539]
[1723902437084,0.000825,59402.0,59401.0,2.45730539]
[1723902437220,1e-08,59410.0,59409.0,1.231287]
[1723902437420,1e-08,59410.0,59409.0,1.62234278]
[1723902437623,1e-08,59410.0,59409.0,1.99571883]
[1723902437829,1e-08,59410.0,59409.0,1.94952459]
[1723902438245,1e-08,59410.0,59409.0,2.02471647]
[1723902439057,1e-08,59410.0,59409.0,2.03871647]
[1723902439316,1e-08,59410.0,59409.0,2.04066256]
[1723902439517,1e-08,59410.0,59409.0,2.07496834]
[1723902439727,1e-08,59410.0,59409.0,1.97948642]
[1723902440542,1e-08,59410.0,59409.0,1.98963466]
[1723902440772,1e-08,59410.0,59409.0,1.69343477]
[1723902440986,1e-08,59410.0,59409.0,2.06680221]
[1723902441174,1e-08,59410.0,59409.0,1.69343477]
[1723902441372,1e-08,59410.0,59409.0,2.06680219]
[1723902441573,1e-08,59410.0,59409.0,1.99163456]
[1723902441788,1e-08,59410.0,59409.0,2.1011162]
[1723902442254,1e-08,59410.0,59409.0,2.18156593]
[1723902442458,1e-08,59410.0,59409.0,2.43405193]
[1723902442649,1e-08,59410.0,59409.0,2.45916437]
[1723902442994,1e-08,59410.0,59409.0,2.56242443]
[1723902443239,1e-08,59410.0,59409.0,2.43711359]
[1723902443444,1e-08,59410.0,59409.0,2.60032167]
[1723902443643,1e-08,59410.0,59409.0,2.66451498]
[1723902444174,0.000825,59421.0,59420.0,1.21748]
[1723902444349,0.000825,59421.0,59420.0,1.59696934]
[1723902444549,0.000825,59421.0,59420.0,1.62596181]
[1723902445235,0.000825,59421.0,59420.0,1.62796181]
[1723902445455,0.000825,59421.0,59420.0,1.54690904]
[1723902445861,0.000825,59421.0,59420.0,1.55090904]
[1723902446289,0.000825,59421.0,59420.0,1.56490904]
[1723902446487,0.000825,59421.0,59420.0,1.96942719]
[1723902446691,0.000825,59421.0,59420.0,1.98342719]
[1723902447642,0.000825,59421.0,59420.0,1.73098719]
[1723902447844,0.000825,59421.0,59420.0,1.70199748]
[1723902448056,0.000825,59421.0,59420.0,1.73097502]
[1723902449434,0.000825,59421.0,59420.0,1.68647502]
[1723902449635,0.000825,59421.0,59420.0,1.68247502]
[1723902449879,0.000825,59421.0,59420.0,1.68447502]
[1723902450053,0.000825,59421.0,59420.0,1.60587502]
[1723902450253,0.000825,59421.0,59420.0,1.57889748]
[1723902452163,1e-08,59421.0,59420.0,1.57889748]
[1723902452363,1e-08,59421.0,59420.0,1.57890197]
[1723902452513,1e-08,59421.0,59420.0,1.58813045]
[1723902452841,1e-08,59421.0,59420.0,1.57890197]
[1723902455234,1e-08,59421.0,59420.0,1.58813109]
[1723902455459,1e-08,59421.0,59420.0,1.69481473]
[1723902455680,1e-08,59421.0,59420.0,1.76990518]
[1723902455839,1e-08,59421.0,59420.0,2.14318691]
[1723902456445,1e-08,59421.0,59420.0,2.05409646]
[1723902456644,1e-08,59421.0,59420.0,2.05408934]
[1723902456863,1e-08,59421.0,59420.0,2.12909901]
[1723902457064,1e-08,59421.0,59420.0,1.75581728]
[1723902457312,1e-08,59421.0,59420.0,1.69480761]
[1723902457508,1e-08,59421.0,59420.0,1.68080761]
[1723902458009,1e-08,59421.0,59420.0,1.69280761]
[1723902458245,1e-08,59421.0,59420.0,1.80154216]
[1723902458449,1e-08,59421.0,59420.0,1.737532]
[1723902458594,1e-08,59421.0,59420.0,1.78754216]
[1723902458797,1e-08,59421.0,59420.0,1.80154216]
[1723902459007,1e-08,59421.0,59420.0,1.80354216]
[1723902459375,0.06030001,59421.0,59420.0,1.65311777]
[1723902459574,0.06030001,59421.0,59420.0,1.72584216]
[1723902459979,0.06030001,59421.0,59420.0,1.71184216]
[1723902460181,0.06030001,59421.0,59420.0,1.72587147]
[1723902460586,0.06030001,59421.0,59420.0,1.69787147]
[1723902460735,0.06030001,59421.0,59420.0,1.71187147]
[1723902460945,0.06030001,59421.0,59420.0,1.62265378]
[1723902461116,0.06030001,59421.0,59420.0,1.64787707]
[1723902461321,0.06030001,59421.0,59420.0,1.66187671]
[1723902461558,0.06030001,59421.0,59420.0,1.60313252]
[1723902461756,1e-08,59421.0,59420.0,2.05147897]
[1723902462116,0.08300001,59421.0,59420.0,1.67419173]
[1723902462329,0.08300001,59421.0,59420.0,2.04748204]
[1723902463005,0.14330001,59421.0,59420.0,1.68819173]
[1723902463242,0.14330001,59421.0,59420.0,2.04748846]
[1723902463669,0.14330001,59421.0,59420.0,2.06149027]
[1723902463887,0.14330001,59421.0,59420.0,2.06349027]
[1723902464137,0.14330001,59421.0,59420.0,2.06149027]
[1723902464334,0.14330001,59421.0,59420.0,2.08651]
[1723902464530,0.14330001,59421.0,59420.0,2.09051]
[1723902464881,0.14330001,59421.0,59420.0,2.07851]
[1723902465083,0.14330001,59421.0,59420.0,1.97843106]
[1723902465684,0.14330001,59421.0,59420.0,1.94020786]
[1723902465917,0.14330001,59421.0,59420.0,1.97843657]
[1723902466763,1e-08,59421.0,59420.0,1.97843657]
[1723902466979,1e-08,59421.0,59420.0,2.10353525]
[1723902467181,0.183,59425.0,59424.0,0.88648]
[1723902467452,0.183,59425.0,59424.0,1.37554772]
[1723902467667,0.183,59425.0,59424.0,1.33463984]
[1723902467869,0.183,59425.0,59424.0,1.58706284]
[1723902468454,0.183,59425.0,59424.0,1.60106284]
[1723902468861,0.183,59425.0,59424.0,1.67623885]
[1723902469073,0.183,59425.0,59424.0,1.98835008]
[1723902469420,0.1,59425.0,59424.0,1.98835008]
[1723902469819,0.1,59425.0,59424.0,2.06356545]
[1723902470020,0.1,59425.0,59424.0,1.98835008]
[1723902470250,0.1,59425.0,59424.0,1.92884478]
[1723902470448,0.1,59425.0,59424.0,1.98834115]
[1723902471461,0.1,59425.0,59424.0,1.98633845]
[1723902471663,0.1,59425.0,59424.0,1.98533845]
[1723902472241,0.1,59425.0,59424.0,2.08563718]
[1723902472594,0.1,59425.0,59424.0,2.14737977]
[1723902473001,0.1,59425.0,59424.0,2.08863718]
[1723902473202,0.1,59425.0,59424.0,2.14737977]
[1723902474029,0.1,59425.0,59424.0,1.98833845]
[1723902474654,0.1,59425.0,59424.0,2.11371186]
[1723902474855,0.1,59425.0,59424.0,2.11370933]
[1723902475422,0.1,59425.0,59424.0,2.11470933]
[1723902476300,0.1,59425.0,59424.0,1.98933592]
[1723902476515,0.1,59425.0,59424.0,2.03486201]
[1723902476722,0.1,59425.0,59424.0,2.24691011]
[1723902476881,0.1,59425.0,59424.0,2.34888501]
[1723902477149,0.083,59428.0,59427.0,1.139845]
[1723902477342,0.083,59428.0,59427.0,1.96127792]
[1723902478693,0.083,59428.0,59427.0,1.97527792]
[1723902479066,0.083,59428.0,59427.0,1.97527031]
[1723902480367,0.000825,59429.0,59428.0,1.138827]
[1723902480596,0.000825,59429.0,59428.0,1.92487466]
[1723902480795,0.000825,59429.0,59428.0,2.17828066]
[1723902481021,0.000825,59429.0,59428.0,2.7207244]
[1723902481427,0.000825,59429.0,59428.0,2.7347244]
[1723902481858,0.000825,59429.0,59428.0,2.81242333]
[1723902482070,0.067325,59429.0,59428.0,2.29852678]
[1723902482271,0.14727501,59429.0,59428.0,2.35888678]
[1723902482442,0.14727501,59429.0,59428.0,2.41960829]
[1723902482639,0.14727501,59429.0,59428.0,2.37288678]
[1723902482845,0.14727501,59429.0,59428.0,1.72719984]
[1723902483044,0.14727501,59429.0,59428.0,1.47849808]
[1723902483293,0.14727501,59429.0,59428.0,1.09023668]
[1723902483630,0.14727501,59429.0,59428.0,1.15444819]
[1723902483835,0.14727501,59429.0,59428.0,1.5678325]
[1723902484068,0.14727501,59429.0,59428.0,1.17955751]
[1723902484514,0.14727501,59429.0,59428.0,1.66783886]
[1723902484749,0.14727501,59429.0,59428.0,1.59251357]
[1723902484961,0.14727501,59429.0,59428.0,1.60651357]
[1723902485411,0.14727501,59429.0,59428.0,1.70694135]
[1723902485628,0.14727501,59429.0,59428.0,1.61574747]
[1723902485847,0.14727501,59429.0,59428.0,1.74128219]
[1723902486068,0.100825,59430.0,59429.0,0.884407]
[1723902486292,0.100825,59430.0,59429.0,1.76413498]
[1723902486508,0.100825,59430.0,59429.0,2.11953698]
[1723902487417,0.1481,59438.0,59437.0,0.977388]
[1723902487635,0.1481,59438.0,59437.0,1.57248057]
[1723902487850,0.1481,59438.0,59437.0,1.93508198]
[1723902488063,0.1481,59438.0,59437.0,1.95808198]
[1723902488064,0.0816,59438.0,59437.0,1.95808198]
[1723902488284,0.0816,59438.0,59437.0,1.95708198]
[1723902489201,0.0816,59438.0,59437.0,1.95707791]
[1723902490061,0.0816,59438.0,59437.0,1.80349446]
[1723902490273,0.0816,59438.0,59437.0,1.87698954]
[1723902490685,0.0816,59438.0,59437.0,1.89098954]
[1723902490853,0.0816,59438.0,59437.0,2.01654579]
[1723902491267,0.0816,59438.0,59437.0,1.89098954]
[1723902491676,0.0816,59438.0,59437.0,2.01652468]
[1723902492811,0.0816,59438.0,59437.0,2.01642712]
[1723902493771,0.0665,59441.0,59440.0,0.883242]
[1723902493974,0.0816,59442.0,59441.0,0.378526]
[1723902494175,0.0816,59442.0,59441.0,0.89900443]
[1723902494472,0.0816,59442.0,59441.0,1.52455483]
[1723902494884,0.0816,59442.0,59441.0,1.15135543]
[1723902495113,0.0816,59442.0,59441.0,1.62455271]
[1723902495315,0.00825,59445.0,59441.0,1.62455271]
[1723902495316,0.08415,59445.0,59444.0,0.883183]
[1723902495517,0.08415,59445.0,59444.0,1.62446979]
[1723902495713,0.08415,59445.0,59444.0,1.83050505]
[1723902495939,0.08415,59445.0,59444.0,1.85350505]
[1723902496115,0.08415,59445.0,59444.0,1.96310268]
[1723902496380,0.08415,59445.0,59444.0,1.86273197]
[1723902496602,0.08415,59445.0,59444.0,1.97405045]
[1723902497264,0.0657,59446.0,59445.0,1.137503]
[1723902497466,0.07395,59449.0,59447.0,0.126162]
[1723902497697,0.07395,59449.0,59447.0,0.31898754]
[1723902497927,0.07395,59449.0,59447.0,1.35128007]
[1723902498345,0.07395,59449.0,59447.0,1.40142996]
[1723902498575,0.07395,59449.0,59447.0,1.40142177]
[1723902499480,0.066525,59448.0,59447.0,1.40142177]
[1723902499710,0.066525,59448.0,59447.0,1.42342177]
[1723902499948,0.066525,59448.0,59447.0,1.37328007]
[1723902500402,0.142425,59448.0,59447.0,1.42342177]
[1723902500641,0.142425,59448.0,59447.0,1.37328007]
[1723902501343,0.142425,59448.0,59447.0,1.09795507]
[1723902502421,0.142425,59448.0,59447.0,1.0979604]
[1723902508908,0.142425,59448.0,59447.0,0.42175586]
[1723902510062,0.142425,59448.0,59447.0,0.42176]
[1723902510736,0.143425,59448.0,59447.0,0.043273]
[1723902510957,0.143425,59448.0,59447.0,0.022]
[1723902511175,0.143425,59448.0,59447.0,0.148162]
[1723902511600,0.142425,59448.0,59447.0,0.400487]
[1723902511821,0.143425,59448.0,59447.0,0.400487]
[1723902512251,0.143425,59448.0,59447.0,0.388487]
[1723902512865,0.143425,59448.0,59447.0,0.381487]
[1723902513484,0.143425,59448.0,59447.0,0.382487]
[1723902514107,0.143425,59448.0,59447.0,0.130162]
[1723902514320,0.143425,59448.0,59447.0,0.004]
[1723902514525,0.269585,59448.0,59447.0,0.004]
[1723902514734,0.143425,59448.0,59447.0,0.004]
[1723902516706,0.269585,59448.0,59447.0,0.004]
[1723902517307,0.143425,59448.0,59447.0,0.004]
[1723902524685,0.269585,59448.0,59447.0,0.004]
[1723902526906,0.774227,59448.0,59447.0,0.004]
[1723902528122,0.521906,59448.0,59447.0,0.004]
[1723902529492,0.774227,59448.0,59447.0,0.004]
[1723902529704,0.615906,59448.0,59447.0,0.004]
[1723902530299,0.868227,59448.0,59447.0,0.004]
[1723902530900,0.615906,59448.0,59447.0,0.004]
[1723902531505,0.868227,59448.0,59447.0,0.004]
[1723902531765,0.615906,59448.0,59447.0,0.004]
[1723902533775,0.868227,59448.0,59447.0,0.004]
[1723902534333,0.615906,59448.0,59447.0,0.004]
[1723902540651,0.868227,59448.0,59447.0,0.004]
[1723902540881,1.29210254,59448.0,59447.0,0.004]
[1723902541121,1.35177238,59448.0,59447.0,0.004]
[1723902542639,1.36201507,59448.0,59447.0,0.004]
[1723902543250,1.35177238,59448.0,59447.0,0.004]
[1723902543457,1.00545138,59448.0,59447.0,0.004]
[1723902543643,1.09945138,59448.0,59447.0,0.004]
[1723902546593,1.09945138,59448.0,59447.0,0.00426]
[1723902547246,1.35177238,59448.0,59447.0,0.00426]
[1723902547461,1.09945138,59448.0,59447.0,0.00426]
[1723902551289,1.09945138,59448.0,59434.0,0.25238]
[1723902551290,0.001,59430.0,59429.0,0.0648]
[1723902551528,0.03,59439.0,59432.0,0.126194]
[1723902551529,0.001,59433.0,59432.0,0.126194]
[1723902551773,0.001,59433.0,59429.0,0.08609473]
[1723902551774,0.001,59438.0,59437.0,0.252368]
[1723902551988,0.001,59438.0,59437.0,0.39984203]
[1723902552201,0.001,59441.0,59440.0,0.126177]
[1723902552415,0.001,59441.0,59440.0,0.72827703]
[1723902552834,0.001,59441.0,59440.0,0.47592203]
[1723902553679,0.001,59441.0,59440.0,0.47692203]
[1723902553897,0.001,59445.0,59444.0,0.378507]
[1723902554130,0.001,59445.0,59444.0,0.47589703]
[1723902554390,0.001,59447.0,59446.0,0.126164]
[1723902554641,0.001,59447.0,59446.0,0.14745403]
[1723902554871,0.001825,59448.0,59447.0,0.126162]
[1723902555151,0.001825,59448.0,59447.0,0.14745203]
[1723902555410,0.001825,59448.0,59447.0,0.39977703]
[1723902555411,0.000825,59448.0,59447.0,0.39977703]
[1723902555896,0.001825,59448.0,59447.0,0.39977703]
[1723902556134,0.001825,59448.0,59447.0,0.14745203]
[1723902556599,0.003825,59448.0,59447.0,0.14745203]
[1723902556830,0.003825,59448.0,59447.0,0.14845203]
[1723902557333,0.003825,59448.0,59447.0,0.10069003]
[1723902557554,0.003825,59448.0,59447.0,0.40076295]
[1723902558470,0.003825,59448.0,59447.0,0.40076532]
[1723902559309,0.003825,59448.0,59447.0,0.379487]
[1723902559527,0.003825,59448.0,59447.0,0.40076873]
[1723902561668,0.002825,59448.0,59447.0,0.40076873]
[1723902561877,0.002825,59448.0,59447.0,0.47916873]
[1723902562690,0.002825,59448.0,59447.0,0.457887]
[1723902562911,0.002825,59448.0,59447.0,0.47917371]
[1723902563321,0.002825,59448.0,59447.0,0.73149871]
[1723902563960,0.002825,59448.0,59447.0,1.07697825]
[1723902564171,0.002825,59448.0,59447.0,1.67002527]
[1723902564383,0.002825,59448.0,59447.0,1.94846961]
[1723902564588,0.002825,59448.0,59447.0,1.97599005]
[1723902564795,0.0025793,59448.0,59447.0,1.81866505]
[1723902565053,0.0025793,59448.0,59447.0,1.82066505]
[1723902565273,0.0005793,59448.0,59447.0,1.82066505]
[1723902565479,0.0005793,59448.0,59447.0,1.82866505]
[1723902566142,0.0005793,59448.0,59447.0,1.83566505]
[1723902566350,0.0005793,59448.0,59447.0,1.95320201]
[1723902566574,0.0005793,59448.0,59447.0,1.94520201]
[1723902566776,0.0005793,59448.0,59447.0,2.22970549]
[1723902567015,0.0005793,59448.0,59447.0,2.22670549]
[1723902567278,0.0005793,59448.0,59447.0,2.21670549]
[1723902567493,0.0005793,59448.0,59447.0,2.25170248]
[1723902567736,0.00825,59449.0,59448.0,1.278944]
[1723902567968,0.00825,59449.0,59448.0,1.99946143]
[1723902568207,0.00825,59449.0,59448.0,2.07045618]
[1723902568477,0.00825,59449.0,59448.0,1.94496379]
[1723902568707,0.00825,59449.0,59448.0,2.04533693]
[1723902569341,0.00825,59449.0,59448.0,2.0553079]
[1723902569515,0.00825,59449.0,59448.0,1.95493226]
[1723902569753,0.00825,59449.0,59448.0,1.96593226]
[1723902569982,0.00825,59449.0,59448.0,1.90083226]
[1723902570394,0.00825,59449.0,59448.0,1.60295419]
[1723902571224,0.00825,59449.0,59448.0,1.97610495]
[1723902571428,0.00825,59449.0,59448.0,1.66805419]
[1723902571642,0.00825,59449.0,59448.0,2.0411983]
[1723902571854,0.00825,59449.0,59448.0,1.66805419]
[1723902572566,0.00825,59449.0,59448.0,1.59278525]
[1723902573454,0.00825,59449.0,59448.0,1.34046425]
[1723902573672,0.00825,59449.0,59448.0,1.3906113]
[1723902574104,0.00825,59449.0,59448.0,1.34046425]
[1723902574564,0.00825,59449.0,59448.0,1.32017754]
[1723902574751,0.00825,59449.0,59448.0,1.39160352]
[1723902575207,0.00825,59449.0,59448.0,1.34345752]
[1723902575648,0.00825,59449.0,59448.0,1.64590957]
[1723902575861,0.00825,59449.0,59448.0,1.59577852]
[1723902576528,0.00825,59449.0,59448.0,1.64590611]
[1723902576753,0.00825,59449.0,59448.0,1.403928]
[1723902577184,0.00825,59449.0,59448.0,1.656249]
[1723902577396,0.00825,59449.0,59448.0,1.403928]
[1723902577830,0.00825,59449.0,59448.0,1.400928]
[1723902578291,0.00825,59449.0,59448.0,1.40092852]
[1723902578490,0.00825,59449.0,59448.0,1.40392852]
[1723902578941,0.00825,59449.0,59448.0,1.42692852]
[1723902579145,0.00825,59449.0,59448.0,1.67924952]
[1723902579353,0.00825,59449.0,59448.0,1.70525413]
[1723902579771,0.00825,59449.0,59448.0,1.70625413]
[1723902579980,0.00825,59449.0,59448.0,1.67724952]
[1723902580448,0.00825,59449.0,59448.0,1.70823954]
[1723902580654,0.00825,59449.0,59448.0,1.65812636]
[1723902581080,0.00825,59449.0,59448.0,1.65512636]
[1723902581297,0.00825,59449.0,59448.0,1.64478347]
[1723902581502,0.00825,59449.0,59448.0,1.39246247]
[1723902581711,0.00825,59449.0,59448.0,1.36345804]
[1723902581920,0.00825,59449.0,59448.0,1.61668544]
[1723902582137,0.00825,59449.0,59448.0,1.64568987]
[1723902582977,0.00825,59449.0,59448.0,1.64668987]
[1723902583182,0.00825,59449.0,59448.0,1.64668977]
[1723902583398,0.00825,59449.0,59448.0,1.6559234]
[1723902583619,0.00825,59449.0,59448.0,1.65592273]
[1723902583827,0.00825,59449.0,59448.0,1.65492273]
[1723902586710,0.00325,59449.0,59448.0,1.65492273]
[1723902587031,0.00325,59449.0,59448.0,1.65492238]
[1723902590474,0.00325,59449.0,59448.0,1.70502486]
[1723902591276,0.00325,59449.0,59448.0,1.76378213]
[1723902591709,0.00325,59449.0,59448.0,1.60536113]
[1723902591912,0.00325,59449.0,59448.0,0.42166728]
[1723902591913,0.08025,59449.0,59448.0,0.42166728]
[1723902592120,0.08025,59449.0,59448.0,0.67398828]
[1723902592551,0.08025,59449.0,59448.0,0.42166728]
[1723902593167,0.08025,59449.0,59448.0,0.67398828]
[1723902594067,0.08025,59449.0,59448.0,0.42166728]
[1723902594824,0.14685,59449.0,59448.0,0.42166728]
[1723902595876,0.14685,59449.0,59448.0,0.67398828]
[1723902596106,0.14685,59449.0,59448.0,0.42166728]
[1723902596744,0.14685,59449.0,59448.0,0.16934628]
[1723902596745,0.14785,59449.0,59448.0,0.16934628]
[1723902597698,0.14785,59449.0,59448.0,0.04318628]
[1723902597699,0.368008,59449.0,59448.0,0.04318628]
[1723902597933,0.620325,59449.0,59448.0,0.04318628]
[1723902598142,0.368008,59449.0,59448.0,0.0219064]
[1723902598759,0.368008,59449.0,59448.0,0.0009064]
[1723902598966,0.368008,59449.0,59448.0,0.0049064]
[1723902598967,0.24185,59449.0,59448.0,0.0049064]
[1723902599181,0.368008,59449.0,59448.0,0.0049064]
[1723902599395,0.368008,59449.0,59448.0,0.0009064]
[1723902599605,0.368008,59449.0,59448.0,0.0019064]
[1723902599847,0.274008,59449.0,59448.0,0.0049064]
[1723902600251,0.274008,59449.0,59448.0,0.0059064]
[1723902600475,0.14785,59449.0,59448.0,0.1320664]
[1723902600687,0.14785,59449.0,59448.0,0.3843874]
[1723902601319,0.14785,59449.0,59448.0,0.3813874]
[1723902601727,0.14785,59449.0,59448.0,0.3843874]
[1723902604927,0.14685,59449.0,59448.0,0.65799624]
[1723902605142,0.14685,59449.0,59448.0,1.08187178]
[1723902605143,0.00325,59449.0,59448.0,1.08187178]
[1723902606182,0.00325,59449.0,59448.0,1.11068642]
[1723902606392,0.00325,59449.0,59448.0,1.13196915]
[1723902606604,0.00325,59449.0,59448.0,1.08186667]
[1723902607014,0.00325,59449.0,59448.0,1.13196915]
[1723902607224,0.00325,59449.0,59448.0,1.08186667]
[1723902607427,0.08355,59449.0,59448.0,1.08186667]
[1723902607628,0.15105,59449.0,59448.0,0.40567013]
[1723902609161,0.15105,59449.0,59448.0,0.15334913]
[1723902609379,0.15105,59449.0,59448.0,0.1320664]
[1723902609594,0.15105,59449.0,59448.0,0.0059064]
[1723902609595,0.307208,59449.0,59448.0,0.0059064]
[1723902609807,0.559525,59449.0,59448.0,0.0059064]
[1723902610340,0.307208,59449.0,59448.0,0.0059064]
[1723902610833,0.559525,59449.0,59448.0,0.0059064]
[1723902613287,0.307208,59449.0,59448.0,0.0059064]
[1723902613916,0.559525,59449.0,59448.0,0.0059064]
[1723902615601,0.811842,59449.0,59448.0,0.0059064]
[1723902615808,0.559525,59449.0,59448.0,0.0059064]
[1723902619961,0.653625,59449.0,59448.0,0.0059064]
[1723902621426,0.653625,59449.0,59448.0,0.02719531]
[1723902631734,0.653625,59449.0,59448.0,0.0271887]
[1723902633121,0.653625,59449.0,59448.0,0.0059064]
[1723902636259,0.653625,59449.0,59448.0,0.02718905]
[1723902636633,0.401308,59449.0,59448.0,0.02718905]
[1723902640311,0.401308,59449.0,59448.0,0.02719234]
[1723902640521,0.653625,59449.0,59448.0,0.02719234]
[1723902644518,0.653625,59449.0,59448.0,0.02719367]
[1723902647059,0.905942,59449.0,59448.0,0.0059064]
[1723902647269,1.38948873,59449.0,59448.0,0.0059064]
[1723902647482,1.64280573,59449.0,59448.0,0.0059064]
[1723902647683,1.69530126,59449.0,59448.0,0.0059064]
[1723902647885,1.64180573,59449.0,59448.0,0.0059064]
[1723902648096,1.82479211,59449.0,59448.0,0.0029064]
[1723902648306,1.92478318,59449.0,59448.0,0.0009064]
[1723902648518,1.92778318,59449.0,59448.0,0.0009064]